bitfinex-derivatives/quotes_BTCF0:USTF0_20250810
["timestamp","ask_amount","ask_price","bid_price","bid_amount"]
[1754790961742,0.58722883,116660.0,116650.0,1.16005702]
[1754790962440,0.58722883,116660.0,116650.0,1.24576702]
[1754790963543,0.58722883,116660.0,116650.0,1.16005702]
[1754790963942,0.58722883,116660.0,116650.0,0.89839]
[1754790964143,0.84889585,116660.0,116650.0,0.89839]
[1754790964442,0.58722883,116660.0,116650.0,0.89839]
[1754790964644,0.58722883,116660.0,116650.0,1.16005702]
[1754790965944,0.84889585,116660.0,116650.0,1.16005702]
[1754790967343,0.84889585,116660.0,116650.0,0.89839]
[1754790967546,0.84889585,116660.0,116650.0,1.16005702]
[1754790968447,0.84885578,116660.0,116650.0,1.16005702]
[1754790969453,0.58718876,116660.0,116650.0,1.16005702]
[1754790969642,0.58718876,116660.0,116650.0,1.24576702]
[1754790969838,0.84885578,116660.0,116650.0,0.9841]
[1754790970047,0.84885578,116660.0,116650.0,1.24576702]
[1754790970748,0.58718876,116660.0,116650.0,1.24576702]
[1754790971048,0.84885578,116660.0,116650.0,1.24576702]
[1754790971248,0.58718876,116660.0,116650.0,0.9841]
[1754790971439,0.84885578,116660.0,116650.0,1.24576702]
[1754790971750,0.84885578,116660.0,116650.0,1.16005702]
[1754790972648,0.84885578,116660.0,116650.0,1.24576712]
[1754790973651,0.58718876,116660.0,116650.0,1.24576712]
[1754790973852,0.84885578,116660.0,116650.0,1.24576712]
[1754790975152,0.58718876,116660.0,116650.0,1.24576712]
[1754790975352,0.84885578,116660.0,116650.0,1.24576712]
[1754790978754,0.58718876,116660.0,116650.0,1.24576712]
[1754790978956,0.84885578,116660.0,116650.0,0.9841001]
[1754790979156,0.84885578,116660.0,116650.0,1.24576712]
[1754790979355,0.58718876,116660.0,116650.0,1.24576712]
[1754790982757,0.58718876,116660.0,116650.0,1.16005702]
[1754790983354,0.22638876,116660.0,116650.0,1.16005702]
[1754790983554,0.58718876,116660.0,116650.0,1.16005702]
[1754790984061,0.58718876,116660.0,116650.0,0.89839]
[1754790984263,0.58718876,116660.0,116650.0,1.16005702]
[1754790984662,0.22638876,116660.0,116650.0,1.16005702]
[1754790984864,0.58718876,116660.0,116650.0,1.16005702]
[1754790986862,0.58718876,116660.0,116650.0,0.89839]
[1754790987266,0.84885578,116660.0,116650.0,1.16005702]
[1754790987865,0.58718876,116660.0,116650.0,0.89711]
[1754790988066,0.84885578,116660.0,116650.0,1.15877702]
[1754790989172,0.58718876,116660.0,116650.0,1.24448712]
[1754790990267,0.58718876,116660.0,116650.0,0.9828201]
[1754790990563,0.58718876,116660.0,116650.0,1.24448712]
[1754790992173,0.58718876,116660.0,116650.0,0.9828201]
[1754790992372,0.58718876,116660.0,116650.0,1.24448712]
[1754790993675,0.58718876,116660.0,116650.0,0.9828201]
[1754790993864,0.58718876,116660.0,116650.0,1.24448712]
[1754791002980,0.84885578,116660.0,116650.0,1.15877702]
[1754791003278,0.84885578,116660.0,116650.0,1.24448712]
[1754791004180,0.84885578,116660.0,116650.0,1.15877702]
[1754791004779,0.84885578,116660.0,116650.0,1.24448712]
[1754791005380,0.58718876,116660.0,116650.0,1.24448712]
[1754791005978,0.84885578,116660.0,116650.0,1.24448712]
[1754791006783,0.58718876,116660.0,116650.0,1.24448712]
[1754791008581,0.58718876,116660.0,116650.0,0.9828201]
[1754791008775,0.58718876,116660.0,116650.0,1.24448712]
[1754791008975,0.58718876,116660.0,116650.0,0.9828201]
[1754791009476,0.58718876,116660.0,116650.0,1.24448712]
[1754791010681,0.58718876,116660.0,116650.0,0.9828201]
[1754791010888,0.58718876,116660.0,116650.0,1.24448712]
[1754791011581,0.58718876,116660.0,116650.0,0.9828201]
[1754791011781,0.58718876,116660.0,116650.0,1.24448712]
[1754791013891,0.58718876,116660.0,116650.0,1.15877702]
[1754791014988,0.58718876,116660.0,116650.0,1.24448752]
[1754791015181,0.58718876,116660.0,116650.0,1.15877702]
[1754791018084,0.58718876,116660.0,116650.0,0.89711]
[1754791018488,0.58718876,116660.0,116650.0,1.15877702]
[1754791020896,0.58718876,116660.0,116650.0,0.89711]
[1754791021190,0.58718876,116660.0,116650.0,1.15877702]
[1754791024292,0.22638876,116660.0,116650.0,1.15877702]
[1754791024591,0.58718876,116660.0,116650.0,1.15877702]
[1754791025593,0.58718876,116660.0,116650.0,0.89711]
[1754791025791,0.58718876,116660.0,116650.0,1.15877702]
[1754791026296,0.58718876,116660.0,116650.0,0.89711]
[1754791026486,0.58718876,116660.0,116650.0,1.15877702]
[1754791026794,0.84885578,116660.0,116650.0,1.15877702]
[1754791027597,0.84885578,116660.0,116650.0,0.89711]
[1754791027895,0.84885578,116660.0,116650.0,1.15877702]
[1754791030599,0.84885578,116660.0,116650.0,0.89711]
[1754791030897,0.84885578,116660.0,116650.0,1.15877702]
[1754791031997,0.48805578,116660.0,116650.0,1.15877702]
[1754791032295,0.84885578,116660.0,116650.0,1.15877702]
[1754791034392,0.48805578,116660.0,116650.0,1.15877702]
[1754791034597,0.84885578,116660.0,116650.0,1.15877702]
[1754791035298,0.58718876,116660.0,116650.0,1.15877702]
[1754791037099,0.58718876,116660.0,116650.0,1.24448742]
[1754791039690,0.58718876,116660.0,116650.0,1.15877702]
[1754791040001,0.58718876,116660.0,116650.0,1.24448752]
[1754791041995,0.58478876,116660.0,116650.0,1.50651454]
[1754791042396,0.58478876,116660.0,116650.0,1.24484752]
[1754791048108,0.22398876,116660.0,116650.0,1.24484752]
[1754791048305,0.58478876,116660.0,116650.0,1.24484752]
[1754791049706,0.22398876,116660.0,116650.0,1.24484752]
[1754791049909,0.58478876,116660.0,116650.0,1.24484752]
[1754791050108,0.58478876,116660.0,116650.0,1.15913702]
[1754791050302,0.58478876,116660.0,116650.0,1.24484762]
[1754791053009,0.22398876,116660.0,116650.0,1.24484762]
[1754791053208,0.58478876,116660.0,116650.0,1.24484762]
[1754791054408,0.58478876,116660.0,116650.0,1.50651464]
[1754791055808,0.58478876,116660.0,116650.0,1.24484762]
[1754791058307,0.58478876,116660.0,116650.0,1.50651464]
[1754791058512,0.5655523,116660.0,116650.0,0.9602706]
[1754791058713,0.5655523,116660.0,116650.0,1.26281397]
[1754791059110,0.58437593,116660.0,116650.0,1.26281397]
[1754791059314,0.58437593,116660.0,116650.0,1.00114695]
[1754791059505,0.58437593,116660.0,116650.0,1.26281397]
[1754791059705,0.58437593,116660.0,116650.0,1.26181397]
[1754791060513,0.58437593,116660.0,116650.0,1.26081397]
[1754791061417,0.58437593,116660.0,116650.0,0.99914695]
[1754791061609,0.58437593,116660.0,116650.0,1.26081397]
[1754791062314,0.84604295,116660.0,116650.0,1.26081397]
[1754791062512,0.58437593,116660.0,116650.0,1.26081397]
[1754791062811,0.58437593,116660.0,116650.0,1.26041749]
[1754791071010,0.5843861,116660.0,116650.0,1.26041749]
[1754791072316,0.5843861,116660.0,116650.0,0.99875047]
[1754791072521,0.5843861,116660.0,116650.0,1.26041749]
[1754791072722,0.5843861,116660.0,116650.0,0.99875047]
[1754791072921,0.5843861,116660.0,116650.0,1.26041749]
[1754791077530,0.5843861,116660.0,116650.0,0.99875047]
[1754791077829,0.5843861,116660.0,116650.0,1.26041749]
[1754791080331,0.2235861,116660.0,116650.0,1.26041749]
[1754791080630,0.5843861,116660.0,116650.0,1.26041749]
[1754791081330,0.5843861,116660.0,116650.0,0.99875047]
[1754791081533,0.5843861,116660.0,116650.0,1.26041749]
[1754791087041,0.2235861,116660.0,116650.0,1.26041749]
[1754791087245,0.5843861,116660.0,116650.0,1.26041749]
[1754791087541,0.2235861,116660.0,116650.0,1.26041749]
[1754791088542,0.2235861,116660.0,116650.0,0.99875047]
[1754791088843,0.1378838,116660.0,116650.0,1.26041749]
[1754791091544,0.1378838,116660.0,116650.0,0.99875047]
[1754791092043,0.1378838,116660.0,116650.0,1.26041749]
[1754791092444,0.1378838,116660.0,116650.0,0.99875047]
[1754791092644,0.223588,116660.0,116650.0,1.26041749]
[1754791093741,0.1378838,116660.0,116650.0,1.26041749]
[1754791095746,0.0198338,116660.0,116650.0,1.52208451]
[1754791095946,0.0429638,116660.0,116650.0,1.88288451]
[1754791097552,0.0198338,116660.0,116650.0,1.88288451]
[1754791098252,0.0429638,116660.0,116650.0,1.88288451]
[1754791098641,0.02413,116660.0,116650.0,1.88288451]
[1754791103061,0.02413,116660.0,116650.0,1.35955047]
[1754791103357,0.001,116660.0,116650.0,1.88288451]
[1754791103551,0.0002,116670.0,116660.0,0.07121]
[1754791103751,0.44649,116680.0,116670.0,0.1234369]
[1754791104057,0.49690203,116680.0,116670.0,1.23870392]
[1754791104251,0.38943203,116680.0,116670.0,1.23870392]
[1754791104459,0.44297203,116680.0,116670.0,1.23870392]
[1754791104659,0.49690203,116680.0,116670.0,1.23870392]
[1754791104862,0.49990203,116680.0,116670.0,1.23970392]
[1754791106450,0.13910203,116680.0,116670.0,1.25677172]
[1754791106759,0.003,116680.0,116670.0,1.51843874]
[1754791106955,0.003,116680.0,116670.0,0.9951047]
[1754791107155,0.02613,116680.0,116670.0,1.51843874]
[1754791107547,0.03575,116680.0,116670.0,1.51843874]
[1754791107856,0.04981,116680.0,116670.0,1.51843874]
[1754791108659,0.04981,116680.0,116670.0,1.52723186]
[1754791109059,0.05181,116680.0,116670.0,1.52723186]
[1754791109357,0.05181,116680.0,116670.0,1.51843874]
[1754791111858,0.05181,116680.0,116670.0,1.52700576]
[1754791113354,0.05181,116680.0,116670.0,1.51843874]
[1754791114763,0.05181,116680.0,116670.0,0.9951047]
[1754791114949,0.05181,116680.0,116670.0,1.51843874]
[1754791117462,0.05181,116680.0,116670.0,0.9951047]
[1754791117663,0.10122,116680.0,116670.0,1.25677172]
[1754791125473,0.1201853,116680.0,116670.0,1.25677172]
[1754791128669,0.0871253,116680.0,116670.0,1.25677172]
[1754791129070,0.0871253,116680.0,116670.0,0.9951047]
[1754791129269,0.0871253,116680.0,116670.0,1.25677172]
[1754791131466,0.0871253,116680.0,116670.0,1.51843874]
[1754791133362,0.0871253,116680.0,116670.0,1.25677172]
[1754791135277,0.0871253,116680.0,116670.0,1.61757172]
[1754791136580,0.0871253,116680.0,116670.0,1.25677172]
[1754791139880,0.0871253,116680.0,116670.0,1.61757172]
[1754791144086,0.0730653,116680.0,116670.0,1.61757172]
[1754791152094,0.0567153,116680.0,116670.0,1.61757172]
[1754791155697,0.0470953,116680.0,116670.0,1.61757172]
[1754791157296,0.0470953,116680.0,116670.0,1.87923874]
[1754791158096,0.0470953,116680.0,116670.0,1.51843874]
[1754791158297,0.0470953,116680.0,116670.0,1.87923874]
[1754791160398,0.0470953,116680.0,116670.0,1.51843874]
[1754791160600,0.0470953,116680.0,116670.0,1.87923874]
[1754791166106,0.0239653,116680.0,116670.0,1.87923874]
[1754791171501,0.0334953,116680.0,116670.0,0.5593447]
[1754791171705,0.1442253,116680.0,116670.0,1.61637172]
[1754791171999,0.0740253,116680.0,116670.0,1.87803874]
[1754791172199,0.0584553,116680.0,116670.0,1.87803874]
[1754791175301,0.0729453,116680.0,116670.0,1.87803874]
[1754791175501,0.1064953,116680.0,116670.0,1.87803874]
[1754791175702,0.1220653,116680.0,116670.0,1.87803874]
[1754791175904,0.1433953,116680.0,116670.0,1.87803874]
[1754791177405,0.1433953,116680.0,116670.0,1.61637172]
[1754791179204,0.1433953,116680.0,116670.0,1.3547047]
[1754791179404,0.1433953,116680.0,116670.0,1.61637172]
[1754791180116,0.1433953,116680.0,116670.0,1.87803874]
[1754791181417,0.1433953,116680.0,116670.0,1.61637172]
[1754791182113,0.1098453,116680.0,116670.0,1.61637172]
[1754791188619,0.0885153,116680.0,116670.0,1.61637172]
[1754791189021,0.0885153,116680.0,116670.0,1.25557172]
[1754791189223,0.0885153,116680.0,116670.0,1.61637172]
[1754791190521,0.0885153,116680.0,116670.0,1.59930392]
[1754791193226,0.0885153,116680.0,116670.0,1.3376369]
[1754791193423,0.0885153,116680.0,116670.0,1.59930392]
[1754791194725,0.0885153,116680.0,116670.0,1.23850392]
[1754791194924,0.0885153,116680.0,116670.0,1.59930392]
[1754791198824,0.1433953,116680.0,116670.0,1.59894392]
[1754791201029,0.2290786,116680.0,116670.0,1.59894392]
[1754791202034,0.49074562,116680.0,116670.0,1.59894392]
[1754791202233,0.2290786,116680.0,116670.0,1.59894392]
[1754791202733,0.2290786,116680.0,116670.0,1.3372769]
[1754791202934,0.2290786,116680.0,116670.0,1.59894392]
[1754791206634,0.2290786,116680.0,116670.0,1.3372769]
[1754791206937,0.2290786,116680.0,116670.0,1.59894392]
[1754791216145,0.2290786,116680.0,116670.0,1.23814392]
[1754791216337,0.2290786,116680.0,116670.0,1.59894392]
[1754791216742,0.1955286,116680.0,116670.0,1.59894392]
[1754791217141,0.1955286,116680.0,116670.0,1.3372769]
[1754791217448,0.1955286,116680.0,116670.0,1.59894392]
[1754791217648,0.2290586,116680.0,116670.0,1.59894392]
[1754791224654,0.2290586,116680.0,116670.0,1.23814392]
[1754791224854,0.2290586,116680.0,116670.0,1.59894392]
[1754791225154,0.0239653,116680.0,116670.0,1.86061094]
[1754791245764,0.0239653,116680.0,116670.0,1.49981094]
[1754791245970,0.0239653,116680.0,116670.0,1.86061094]
[1754791248970,0.0239653,116680.0,116670.0,1.3372769]
[1754791249171,0.0239653,116680.0,116670.0,1.86061094]
[1754791252577,0.005,116680.0,116670.0,1.86061094]
[1754791257079,0.005,116680.0,116670.0,1.49981094]
[1754791257376,0.005,116680.0,116670.0,1.86061094]
[1754791262682,0.005,116680.0,116670.0,1.3372769]
[1754791262882,0.005,116680.0,116670.0,1.86061094]
[1754791264585,0.11684,116690.0,116680.0,0.1788132]
[1754791264784,0.22122415,116690.0,116680.0,1.06314724]
[1754791265080,0.13554825,116690.0,116680.0,1.06314724]
[1754791265677,0.13754825,116690.0,116680.0,1.06314724]
[1754791266075,0.14154825,116690.0,116680.0,1.06414724]
[1754791270389,0.14154015,116690.0,116680.0,1.06414724]
[1754791272702,0.10947015,116690.0,116680.0,1.06414724]
[1754791274687,0.10947015,116690.0,116680.0,0.70334724]
[1754791274986,0.10947015,116690.0,116680.0,1.06414724]
[1754791278290,0.10947089,116690.0,116680.0,1.06414724]
[1754791279489,0.05775089,116690.0,116680.0,1.06414724]
[1754791282491,0.05775089,116690.0,116680.0,0.5408132]
[1754791282690,0.05775089,116690.0,116680.0,1.06414724]
[1754791284394,0.05775089,116690.0,116680.0,0.5408132]
[1754791284595,0.05775089,116690.0,116680.0,1.06414724]
[1754791287794,0.48885431,116690.0,116680.0,1.00874724]
[1754791287998,0.22718729,116690.0,116680.0,1.21358022]
[1754791288196,0.22718729,116690.0,116680.0,1.49776724]
[1754791290501,0.22718729,116690.0,116680.0,1.85856724]
[1754791293303,0.22718729,116690.0,116680.0,1.3352332]
[1754791293505,0.22718729,116690.0,116680.0,1.85856724]
[1754791293695,0.22718729,116690.0,116680.0,1.06524724]
[1754791293892,0.22718729,116690.0,116680.0,1.85852724]
[1754791295905,0.22718729,116690.0,116680.0,1.3351932]
[1754791296106,0.22718729,116690.0,116680.0,1.85852724]
[1754791302011,0.22718729,116690.0,116680.0,1.3351932]
[1754791302208,0.22718729,116690.0,116680.0,1.85852724]
[1754791303809,0.14151089,116690.0,116680.0,1.85852724]
[1754791309206,0.14151089,116690.0,116680.0,1.3351932]
[1754791309512,0.14151089,116690.0,116680.0,1.85852724]
[1754791310114,0.10888089,116690.0,116680.0,1.85852724]
[1754791312713,0.10888089,116690.0,116680.0,1.3351932]
[1754791312914,0.10888089,116690.0,116680.0,1.85852724]
[1754791314212,0.10888089,116690.0,116680.0,1.3351932]
[1754791314512,0.10888089,116690.0,116680.0,1.85852724]
[1754791316416,0.05775089,116690.0,116680.0,1.85852724]
[1754791317416,0.05775089,116690.0,116680.0,1.49772724]
[1754791317616,0.05775089,116690.0,116680.0,1.85852724]
[1754791321417,0.05775089,116690.0,116680.0,1.3351932]
[1754791321918,0.05775089,116690.0,116680.0,1.85852724]
[1754791323723,0.05775089,116690.0,116680.0,1.3351932]
[1754791323916,0.05775089,116690.0,116680.0,1.85852724]
[1754791330418,0.0577229,116690.0,116680.0,1.85852724]
[1754791336730,0.0479329,116690.0,116680.0,1.85852724]
[1754791342037,0.0249729,116690.0,116680.0,1.85852724]
[1754791342734,0.0249729,116690.0,116680.0,1.3351932]
[1754791342931,0.0249729,116690.0,116680.0,1.85852724]
[1754791343545,0.0249729,116690.0,116680.0,1.87620081]
[1754791348148,0.0249729,116690.0,116680.0,1.87532081]
[1754791351950,0.0478029,116690.0,116680.0,1.87532081]
[1754791352344,0.0478029,116690.0,116680.0,1.35198677]
[1754791352543,0.0478029,116690.0,116680.0,1.87532081]
[1754791354349,0.0478029,116690.0,116680.0,1.35198677]
[1754791354648,0.0478029,116690.0,116680.0,1.87532081]
[1754791357851,0.0478029,116690.0,116680.0,1.51452081]
[1754791361154,0.0478029,116690.0,116680.0,0.99118677]
[1754791361354,0.0478029,116690.0,116680.0,1.51452081]
[1754791367052,0.0249729,116690.0,116680.0,1.51452081]
[1754791367555,0.0489629,116690.0,116680.0,1.51452081]
[1754791369152,0.0489629,116690.0,116680.0,1.87532081]
[1754791369350,0.0489629,116690.0,116680.0,1.51452081]
[1754791372257,0.0249729,116690.0,116680.0,1.51452081]
[1754791372460,0.0249729,116690.0,116680.0,1.87532081]
[1754791376661,0.0489629,116690.0,116680.0,1.87532081]
[1754791381571,0.0489629,116690.0,116680.0,1.51452081]
[1754791381961,0.0489629,116690.0,116680.0,0.9735132]
[1754791382165,0.0489629,116690.0,116680.0,1.49684724]
[1754791382872,0.0489629,116690.0,116680.0,0.9735132]
[1754791383068,0.0489629,116690.0,116680.0,1.49684724]
[1754791387374,0.1346393,116690.0,116680.0,1.49684724]
[1754791387973,0.13402901,116690.0,116680.0,1.49684724]
[1754791388570,0.04835261,116690.0,116680.0,1.49684724]
[1754791388872,0.13402891,116690.0,116680.0,1.49684724]
[1754791393076,0.13402891,116690.0,116680.0,0.9735132]
[1754791393270,0.13402891,116690.0,116680.0,1.49684724]
[1754791395578,0.13402891,116690.0,116680.0,0.9735132]
[1754791395771,0.13402891,116690.0,116680.0,1.49684724]
[1754791399082,0.13402891,116690.0,116680.0,0.9735132]
[1754791399379,0.13402891,116690.0,116680.0,1.49684724]
[1754791401181,0.13402891,116690.0,116680.0,0.9735132]
[1754791401583,0.13402891,116690.0,116680.0,1.49684724]
[1754791403993,0.13402891,116690.0,116680.0,0.9735132]
[1754791404193,0.13402891,116690.0,116680.0,1.49684724]
[1754791404394,0.13402891,116690.0,116680.0,0.9735132]
[1754791404599,0.13402891,116690.0,116680.0,1.49684724]
[1754791408092,0.13402891,116690.0,116680.0,0.9735132]
[1754791408298,0.13402891,116690.0,116680.0,1.49684724]
[1754791408898,0.13402891,116690.0,116680.0,0.9735132]
[1754791409093,0.13402891,116690.0,116680.0,1.49684724]
[1754791409590,0.13402891,116690.0,116680.0,0.9735132]
[1754791409792,0.13402891,116690.0,116680.0,1.49684724]
[1754791411806,0.13402891,116690.0,116680.0,1.85764724]
[1754791411998,0.13402891,116690.0,116680.0,1.49684724]
[1754791414102,0.13402891,116690.0,116680.0,0.9735132]
[1754791414299,0.13402891,116690.0,116680.0,1.49684724]
[1754791415003,0.13402891,116690.0,116680.0,1.85764724]
[1754791415802,0.13402891,116690.0,116680.0,1.49684724]
[1754791420108,0.20850891,116690.0,116680.0,1.49684724]
[1754791420405,0.23175891,116690.0,116680.0,0.70444724]
[1754791420599,0.23175891,116690.0,116680.0,1.49552724]
[1754791421894,0.19740891,116690.0,116680.0,1.49552724]
[1754791422099,0.16029891,116690.0,116680.0,1.49552724]
[1754791423208,0.14387891,116690.0,116680.0,1.49552724]
[1754791424502,0.13402891,116690.0,116680.0,1.85632724]
[1754791427502,0.13402891,116690.0,116680.0,1.49552724]
[1754791427808,0.13402891,116690.0,116680.0,1.85632724]
[1754791430002,0.13402891,116690.0,116680.0,0.9721932]
[1754791430202,0.13402891,116690.0,116680.0,1.85632724]
[1754791430404,0.13402891,116690.0,116680.0,1.49552724]
[1754791430604,0.13402891,116690.0,116680.0,1.85632724]
[1754791434709,0.13402891,116690.0,116680.0,1.49552724]
[1754791434915,0.13402891,116690.0,116680.0,1.85632724]
[1754791437116,0.13402891,116690.0,116680.0,0.9721932]
[1754791437316,0.13402891,116690.0,116680.0,1.49552724]
[1754791437916,0.13402891,116690.0,116680.0,0.9721932]
[1754791438110,0.13402891,116690.0,116680.0,1.49552724]
[1754791441518,0.15773891,116690.0,116680.0,1.49552724]
[1754791443217,0.15773891,116690.0,116680.0,0.9721932]
[1754791443419,0.15773891,116690.0,116680.0,1.49552724]
[1754791443621,0.15773891,116690.0,116680.0,0.9721932]
[1754791443920,0.15773891,116690.0,116680.0,1.49552724]
[1754791445227,0.19091891,116690.0,116680.0,1.49552724]
[1754791446822,0.20733891,116690.0,116680.0,1.49508724]
[1754791447018,0.20733891,116690.0,116680.0,0.9717532]
[1754791447517,0.20733891,116690.0,116680.0,1.49508724]
[1754791449322,0.20733891,116690.0,116680.0,0.9717532]
[1754791449520,0.20733891,116690.0,116680.0,1.49508724]
[1754791451427,0.17415891,116690.0,116680.0,1.49508724]
[1754791461330,0.17415891,116690.0,116680.0,0.9717532]
[1754791461530,0.17415891,116690.0,116680.0,1.49508724]
[1754791461733,0.53495891,116690.0,116680.0,0.9717532]
[1754791461935,0.17415891,116690.0,116680.0,1.49508724]
[1754791469552,0.17415891,116690.0,116680.0,0.9717532]
[1754791469851,0.17415891,116690.0,116680.0,1.49508724]
[1754791471146,0.17415891,116690.0,116680.0,0.9717532]
[1754791471347,0.17415891,116690.0,116680.0,1.49508724]
[1754791473550,0.17415891,116690.0,116680.0,0.9717532]
[1754791473756,0.17415891,116690.0,116680.0,1.49508724]
[1754791474054,0.17415891,116690.0,116680.0,0.9717532]
[1754791474249,0.17415891,116690.0,116680.0,1.49508724]
[1754791475154,0.17415891,116690.0,116680.0,0.9717532]
[1754791475356,0.22784891,116690.0,116680.0,1.49508724]
[1754791477555,0.19622891,116690.0,116680.0,1.49508724]
[1754791478155,0.19622891,116690.0,116680.0,0.9717532]
[1754791478356,0.19622891,116690.0,116680.0,1.49508724]
[1754791478757,0.19622891,116690.0,116680.0,0.9717532]
[1754791478954,0.19622891,116690.0,116680.0,1.49508724]
[1754791479458,0.19622891,116690.0,116680.0,0.9717532]
[1754791479658,0.19622891,116690.0,116680.0,1.49508724]
[1754791482053,0.19622891,116690.0,116680.0,0.9717532]
[1754791482252,0.19622891,116690.0,116680.0,1.49508724]
[1754791490955,0.19622891,116690.0,116680.0,1.23342022]
[1754791491154,0.19622891,116690.0,116680.0,1.49508724]
[1754791492662,0.19622891,116690.0,116680.0,0.9717532]
[1754791492961,0.19622891,116690.0,116680.0,1.49508724]
[1754791493656,0.19622891,116690.0,116680.0,0.9717532]
[1754791493857,0.19622891,116690.0,116680.0,1.49508724]
[1754791494165,0.19622891,116690.0,116680.0,0.9717532]
[1754791494359,0.19622891,116690.0,116680.0,1.49508724]
[1754791494659,0.19622891,116690.0,116680.0,0.1811132]
[1754791494864,0.19622891,116690.0,116680.0,1.49420724]
[1754791495166,0.19622891,116690.0,116680.0,0.9708332]
[1754791495461,0.19622891,116690.0,116680.0,1.49416724]
[1754791495661,0.19622891,116690.0,116680.0,0.9708332]
[1754791495863,0.19622891,116690.0,116680.0,1.49416724]
[1754791496866,0.19622891,116690.0,116680.0,0.9708332]
[1754791497058,0.19622891,116690.0,116680.0,1.49416724]
[1754791497866,0.19622891,116690.0,116680.0,0.9708332]
[1754791498166,0.19622891,116690.0,116680.0,1.49416724]
[1754791500670,0.19622891,116690.0,116680.0,0.9708332]
[1754791501060,0.19622891,116690.0,116680.0,1.49416724]
[1754791502567,0.19622891,116690.0,116680.0,0.9708332]
[1754791502869,0.19622891,116690.0,116680.0,1.49416724]
[1754791507469,0.15810891,116690.0,116680.0,1.49416724]
[1754791508370,0.04716261,116690.0,116680.0,1.49416724]
[1754791508568,0.02436261,116690.0,116680.0,1.06524724]
[1754791508768,0.15892891,116690.0,116680.0,1.85472724]
[1754791509072,0.22812891,116690.0,116680.0,1.85472724]
[1754791510971,0.19538891,116690.0,116680.0,1.85472724]
[1754791511673,0.17285891,116690.0,116680.0,1.85472724]
[1754791512275,0.17285891,116690.0,116680.0,1.3313932]
[1754791512573,0.17285891,116690.0,116680.0,1.85472724]
[1754791513476,0.08718261,116690.0,116680.0,1.85472724]
[1754791514069,0.17285901,116690.0,116680.0,1.85472724]
[1754791514578,0.04854261,116690.0,116680.0,1.85472724]
[1754791515978,0.02436261,116690.0,116680.0,1.85472724]
[1754791524584,0.02436261,116690.0,116680.0,2.11639426]
[1754791526377,0.006,116690.0,116680.0,2.11639426]
[1754791526781,0.006,116690.0,116680.0,1.85472724]
[1754791527175,0.02484276,116690.0,116680.0,1.85472724]
[1754791527374,0.02484276,116690.0,116680.0,2.11639426]
[1754791528386,0.02484276,116690.0,116680.0,2.38539426]
[1754791529187,0.006,116690.0,116680.0,2.38539426]
[1754791534986,0.02448,116700.0,116680.0,2.50025646]
[1754791535191,0.04344494,116700.0,116690.0,1.06292044]
[1754791535393,0.01916494,116700.0,116690.0,1.85236044]
[1754791535692,0.05370494,116700.0,116690.0,1.85236044]
[1754791535893,0.06758494,116700.0,116690.0,1.85236044]
[1754791536294,0.10228494,116700.0,116690.0,1.85236044]
[1754791536889,0.07158494,116700.0,116690.0,1.85336044]
[1754791537897,0.07058494,116700.0,116690.0,1.85336044]
[1754791538098,0.05670494,116700.0,116690.0,1.85336044]
[1754791542001,0.02216494,116700.0,116690.0,1.85336044]
[1754791542205,0.04695494,116700.0,116690.0,1.85328044]
[1754791542505,0.14135494,116700.0,116690.0,1.85328044]
[1754791544302,0.14135494,116700.0,116690.0,1.3299464]
[1754791544508,0.14135494,116700.0,116690.0,1.59161342]
[1754791544805,0.14135494,116700.0,116690.0,1.85328044]
[1754791545006,0.14135494,116700.0,116690.0,1.3299464]
[1754791545308,0.14135494,116700.0,116690.0,1.59161342]
[1754791548807,0.14135494,116700.0,116690.0,1.85328044]
[1754791549002,0.14135494,116700.0,116690.0,1.06412044]
[1754791549203,0.14135494,116700.0,116690.0,1.85324044]
[1754791550012,0.14135494,116700.0,116690.0,1.06412044]
[1754791550210,0.14135494,116700.0,116690.0,1.85324044]
[1754791552210,0.08673494,116700.0,116690.0,1.85324044]
[1754791555511,0.07285494,116700.0,116690.0,1.85324044]
[1754791556612,0.05670494,116700.0,116690.0,1.85324044]
[1754791556816,0.02216494,116700.0,116690.0,1.85324044]
[1754791557313,0.04695494,116700.0,116690.0,1.85324044]
[1754791563723,0.07058494,116700.0,116690.0,1.85324044]
[1754791564021,0.11943494,116700.0,116690.0,1.85324044]
[1754791564214,0.08673494,116700.0,116690.0,1.85324044]
[1754791564417,0.05670494,116700.0,116690.0,1.85324044]
[1754791566120,0.05670494,116700.0,116690.0,1.49244044]
[1754791566322,0.05670494,116700.0,116690.0,1.85324044]
[1754791572926,0.05670494,116700.0,116690.0,1.3299064]
[1754791573125,0.05670494,116700.0,116690.0,1.85324044]
[1754791583930,0.04695494,116700.0,116690.0,1.85324044]
[1754791588233,0.04695494,116700.0,116690.0,1.49244044]
[1754791588421,0.04695494,116700.0,116690.0,1.85324044]
[1754791596141,0.04695494,116700.0,116690.0,1.49244044]
[1754791596442,0.04695494,116700.0,116690.0,1.85324044]
[1754791601050,0.04695494,116700.0,116690.0,1.49244044]
[1754791601346,0.04695494,116700.0,116690.0,1.85324044]
[1754791602348,0.02216494,116700.0,116690.0,1.85324044]
[1754791604652,0.02216494,116700.0,116690.0,1.49244044]
[1754791604858,0.02216494,116700.0,116690.0,1.85324044]
[1754791611463,0.02016494,116700.0,116690.0,1.85424044]
[1754791611771,0.02116494,116700.0,116690.0,1.85424044]
[1754791611964,0.02016494,116700.0,116690.0,1.85424044]
[1754791614874,0.02016494,116700.0,116690.0,1.49344044]
[1754791615174,0.02016494,116700.0,116690.0,1.85424044]
[1754791619475,0.02016494,116700.0,116690.0,1.06512044]
[1754791619676,0.06743494,116700.0,116690.0,1.85408044]
[1754791619878,0.13850494,116700.0,116690.0,1.85408044]
[1754791620380,0.10372494,116700.0,116690.0,1.3307464]
[1754791620567,0.10372494,116700.0,116690.0,0.80345342]
[1754791620769,0.10372494,116700.0,116690.0,1.59241342]
[1754791620971,0.10372494,116700.0,116690.0,1.85408044]
[1754791622578,0.10372494,116700.0,116690.0,1.3307464]
[1754791622780,0.10372494,116700.0,116690.0,1.85408044]
[1754791625884,0.05308494,116700.0,116690.0,1.85408044]
[1754791626781,0.04333494,116700.0,116690.0,1.85408044]
[1754791627082,0.02016494,116700.0,116690.0,1.85408044]
[1754791632182,1e-08,116700.0,116690.0,1.85408044]
[1754791634989,1e-08,116700.0,116690.0,2.12308044]
[1754791641496,1e-08,116700.0,116690.0,1.5997464]
[1754791641794,1e-08,116700.0,116690.0,2.12308044]
[1754791642088,1e-08,116700.0,116690.0,1.86141342]
[1754791642293,1e-08,116700.0,116690.0,2.12308044]
[1754791655707,1e-08,116700.0,116690.0,2.12296044]
[1754791673119,1e-08,116700.0,116690.0,1.76216044]
[1754791673323,1e-08,116700.0,116690.0,2.48376044]
[1754791675522,0.01942556,116700.0,116690.0,2.42822044]
[1754791676223,0.01942556,116700.0,116690.0,2.48568044]
[1754791677816,0.01942556,116700.0,116690.0,1.9623464]
[1754791678017,0.01942556,116700.0,116690.0,2.48568044]
[1754791679125,0.01942556,116700.0,116690.0,2.74734746]
[1754791679326,0.01942556,116700.0,116690.0,2.48568044]
[1754791679922,0.01942556,116700.0,116690.0,2.74734746]